{"text_format":"3","workbook":"xlsx","n_sheets":5,"sheets":["Dashboard","Gastos e Rendimentos","Relatório Orçamental","Listas de Dados","Tabela Dinâmica da Categoria"],"not_rendered":{"charts":3,"defined_names":18,"pivot_tables":2},"read":"whole","date_system":"1900"}

{"sheet":"Dashboard","index":0,"n_rows":21,"n_cols":16,"rows_kept":21,"merged":[[5,2,5,3],[8,9,8,10],[9,9,9,10],[10,9,10,10]]}
[]
[null,null,"Orçamento Doméstico Semimensal",{"$nulls":12},"DASHBOARD"]
[]
[]
[]
[null,null,{"$f":"CHOOSE(NúmeroDeMês,\"Janeiro\",\"Feveiro\",\"Março\",\"Abril\",\"Maio\",\"Junho\",\"Julho\",\"Agosto\",\"Setembro\",\"Outubro\",\"Novembro\",\"Dezembro\")","v":"Agosto"},null,8,{"$nulls":5},2012]
[]
[]
[null,null,"TOTAIS MENSAIS","Monthly Totals",{"$nulls":5},"TOTAIS ANUAIS",null,"Annual Totals"]
[null,null,"RENDIMENTOS","Gastos",{"$f":"SUMIF(Gastos[DATA],\"<=\"&DataMêsFim,Gastos[QUANTIA])-SUMIF(Gastos[DATA],\"<\"&DataMêsInício,Gastos[QUANTIA])","v":{"v":0,"d":"0 €"}},{"$nulls":4},"RENDIMENTOS",null,"Gastos",{"$f":"SUM(IF(YEAR(Gastos[DATA])=K6,Gastos[QUANTIA]))","v":{"v":10242,"d":"10,242 €"}}]
[null,null,"GASTOS","Rendimentos",{"$f":"SUMIF(Rendimentos[DATA],\"<=\"&DataMêsFim,Rendimentos[QUANTIA])-SUMIF(Rendimentos[DATA],\"<\"&DataMêsInício,Rendimentos[QUANTIA])","v":{"v":0,"d":"0 €"}},{"$nulls":4},"GASTOS",null,"Rendimentos",{"$f":"SUM(IF(YEAR(Rendimentos[DATA])=K6,Rendimentos[QUANTIA]))","v":{"v":12700,"d":"12,700 €"}}]
[]
[]
[]
[]
[]
[{"$nulls":3},"JANEIRO","FEVEREIRO","MARÇO","ABRIL","MAIO","JUNHO","JULHO","AGOSTO","SETEMBRO","OUTUBRO","NOVEMBRO","DEZEMBRO"]
[null,null,"Rendimentos 1-15",{"$f":"SUMIFS(Rendimentos[QUANTIA],Rendimentos[DESCRIÇÃO],\"<=\"&DtMeio,Rendimentos[DESCRIÇÃO],\">=\"&DtInício)","v":{"v":0,"d":"0.00 €"}},{"$f":"SUMIFS(Rendimentos[QUANTIA],Rendimentos[DESCRIÇÃO],\"<=\"&DtMeio,Rendimentos[DESCRIÇÃO],\">=\"&DtInício)","v":{"v":0,"d":"0.00 €"}},{"$f":"SUMIFS(Rendimentos[QUANTIA],Rendimentos[DESCRIÇÃO],\"<=\"&DtMeio,Rendimentos[DESCRIÇÃO],\">=\"&DtInício)","v":{"v":0,"d":"0.00 €"}},{"$f":"SUMIFS(Rendimentos[QUANTIA],Rendimentos[DESCRIÇÃO],\"<=\"&DtMeio,Rendimentos[DESCRIÇÃO],\">=\"&DtInício)","v":{"v":0,"d":"0.00 €"}},{"$f":"SUMIFS(Rendimentos[QUANTIA],Rendimentos[DESCRIÇÃO],\"<=\"&DtMeio,Rendimentos[DESCRIÇÃO],\">=\"&DtInício)","v":{"v":0,"d":"0.00 €"}},{"$f":"SUMIFS(Rendimentos[QUANTIA],Rendimentos[DESCRIÇÃO],\"<=\"&DtMeio,Rendimentos[DESCRIÇÃO],\">=\"&DtInício)","v":{"v":0,"d":"0.00 €"}},{"$f":"SUMIFS(Rendimentos[QUANTIA],Rendimentos[DESCRIÇÃO],\"<=\"&DtMeio,Rendimentos[DESCRIÇÃO],\">=\"&DtInício)","v":{"v":0,"d":"0.00 €"}},{"$f":"SUMIFS(Rendimentos[QUANTIA],Rendimentos[DESCRIÇÃO],\"<=\"&DtMeio,Rendimentos[DESCRIÇÃO],\">=\"&DtInício)","v":{"v":0,"d":"0.00 €"}},{"$f":"SUMIFS(Rendimentos[QUANTIA],Rendimentos[DESCRIÇÃO],\"<=\"&DtMeio,Rendimentos[DESCRIÇÃO],\">=\"&DtInício)","v":{"v":0,"d":"0.00 €"}},{"$f":"SUMIFS(Rendimentos[QUANTIA],Rendimentos[DESCRIÇÃO],\"<=\"&DtMeio,Rendimentos[DESCRIÇÃO],\">=\"&DtInício)","v":{"v":0,"d":"0.00 €"}},{"$f":"SUMIFS(Rendimentos[QUANTIA],Rendimentos[DESCRIÇÃO],\"<=\"&DtMeio,Rendimentos[DESCRIÇÃO],\">=\"&DtInício)","v":{"v":0,"d":"0.00 €"}},{"$f":"SUMIFS(Rendimentos[QUANTIA],Rendimentos[DESCRIÇÃO],\"<=\"&DtMeio,Rendimentos[DESCRIÇÃO],\">=\"&DtInício)","v":{"v":0,"d":"0.00 €"}}]
[null,null,"Rendimento 16-FDM",{"$f":"SUMIFS(Rendimentos[QUANTIA],Rendimentos[DESCRIÇÃO],\"<=\"&DtFim,Rendimentos[DESCRIÇÃO],\">=\"&DtMeio+1)","v":{"v":0,"d":"0.00 €"}},{"$f":"SUMIFS(Rendimentos[QUANTIA],Rendimentos[DESCRIÇÃO],\"<=\"&DtFim,Rendimentos[DESCRIÇÃO],\">=\"&DtMeio+1)","v":{"v":0,"d":"0.00 €"}},{"$f":"SUMIFS(Rendimentos[QUANTIA],Rendimentos[DESCRIÇÃO],\"<=\"&DtFim,Rendimentos[DESCRIÇÃO],\">=\"&DtMeio+1)","v":{"v":0,"d":"0.00 €"}},{"$f":"SUMIFS(Rendimentos[QUANTIA],Rendimentos[DESCRIÇÃO],\"<=\"&DtFim,Rendimentos[DESCRIÇÃO],\">=\"&DtMeio+1)","v":{"v":0,"d":"0.00 €"}},{"$f":"SUMIFS(Rendimentos[QUANTIA],Rendimentos[DESCRIÇÃO],\"<=\"&DtFim,Rendimentos[DESCRIÇÃO],\">=\"&DtMeio+1)","v":{"v":0,"d":"0.00 €"}},{"$f":"SUMIFS(Rendimentos[QUANTIA],Rendimentos[DESCRIÇÃO],\"<=\"&DtFim,Rendimentos[DESCRIÇÃO],\">=\"&DtMeio+1)","v":{"v":0,"d":"0.00 €"}},{"$f":"SUMIFS(Rendimentos[QUANTIA],Rendimentos[DESCRIÇÃO],\"<=\"&DtFim,Rendimentos[DESCRIÇÃO],\">=\"&DtMeio+1)","v":{"v":0,"d":"0.00 €"}},{"$f":"SUMIFS(Rendimentos[QUANTIA],Rendimentos[DESCRIÇÃO],\"<=\"&DtFim,Rendimentos[DESCRIÇÃO],\">=\"&DtMeio+1)","v":{"v":0,"d":"0.00 €"}},{"$f":"SUMIFS(Rendimentos[QUANTIA],Rendimentos[DESCRIÇÃO],\"<=\"&DtFim,Rendimentos[DESCRIÇÃO],\">=\"&DtMeio+1)","v":{"v":0,"d":"0.00 €"}},{"$f":"SUMIFS(Rendimentos[QUANTIA],Rendimentos[DESCRIÇÃO],\"<=\"&DtFim,Rendimentos[DESCRIÇÃO],\">=\"&DtMeio+1)","v":{"v":0,"d":"0.00 €"}},{"$f":"SUMIFS(Rendimentos[QUANTIA],Rendimentos[DESCRIÇÃO],\"<=\"&DtFim,Rendimentos[DESCRIÇÃO],\">=\"&DtMeio+1)","v":{"v":0,"d":"0.00 €"}},{"$f":"SUMIFS(Rendimentos[QUANTIA],Rendimentos[DESCRIÇÃO],\"<=\"&DtFim,Rendimentos[DESCRIÇÃO],\">=\"&DtMeio+1)","v":{"v":0,"d":"0.00 €"}}]
[null,null,"Gastos 1-15",{"$f":"SUMIFS(Gastos[QUANTIA],Gastos[DATA],\"<=\"&DtMeio,Gastos[DATA],\">=\"&DtInício)","v":{"v":0,"d":"0.00 €"}},{"$f":"SUMIFS(Gastos[QUANTIA],Gastos[DATA],\"<=\"&DtFim,Gastos[DATA],\">=\"&DtInício)","v":{"v":0,"d":"0.00 €"}},{"$f":"SUMIFS(Gastos[QUANTIA],Gastos[DATA],\"<=\"&DtFim,Gastos[DATA],\">=\"&DtInício)","v":{"v":0,"d":"0.00 €"}},{"$f":"SUMIFS(Gastos[QUANTIA],Gastos[DATA],\"<=\"&DtFim,Gastos[DATA],\">=\"&DtInício)","v":{"v":0,"d":"0.00 €"}},{"$f":"SUMIFS(Gastos[QUANTIA],Gastos[DATA],\"<=\"&DtFim,Gastos[DATA],\">=\"&DtInício)","v":{"v":0,"d":"0.00 €"}},{"$f":"SUMIFS(Gastos[QUANTIA],Gastos[DATA],\"<=\"&DtFim,Gastos[DATA],\">=\"&DtInício)","v":{"v":0,"d":"0.00 €"}},{"$f":"SUMIFS(Gastos[QUANTIA],Gastos[DATA],\"<=\"&DtFim,Gastos[DATA],\">=\"&DtInício)","v":{"v":0,"d":"0.00 €"}},{"$f":"SUMIFS(Gastos[QUANTIA],Gastos[DATA],\"<=\"&DtFim,Gastos[DATA],\">=\"&DtInício)","v":{"v":0,"d":"0.00 €"}},{"$f":"SUMIFS(Gastos[QUANTIA],Gastos[DATA],\"<=\"&DtFim,Gastos[DATA],\">=\"&DtInício)","v":{"v":1425,"d":"1,425.00 €"}},{"$f":"SUMIFS(Gastos[QUANTIA],Gastos[DATA],\"<=\"&DtFim,Gastos[DATA],\">=\"&DtInício)","v":{"v":6025,"d":"6,025.00 €"}},{"$f":"SUMIFS(Gastos[QUANTIA],Gastos[DATA],\"<=\"&DtFim,Gastos[DATA],\">=\"&DtInício)","v":{"v":2792,"d":"2,792.00 €"}},{"$f":"SUMIFS(Gastos[QUANTIA],Gastos[DATA],\"<=\"&DtFim,Gastos[DATA],\">=\"&DtInício)","v":{"v":0,"d":"0.00 €"}}]
[null,null,"Gasto 16-FDM",{"$f":"SUMIFS(Gastos[QUANTIA],Gastos[DATA],\"<=\"&DtFim,Gastos[DATA],\">=\"&DtMeio+1)","v":{"v":0,"d":"0.00 €"}},{"$f":"SUMIFS(Gastos[QUANTIA],Gastos[DATA],\"<=\"&DtFim,Gastos[DATA],\">=\"&DtMeio+1)","v":{"v":0,"d":"0.00 €"}},{"$f":"SUMIFS(Gastos[QUANTIA],Gastos[DATA],\"<=\"&DtFim,Gastos[DATA],\">=\"&DtMeio+1)","v":{"v":0,"d":"0.00 €"}},{"$f":"SUMIFS(Gastos[QUANTIA],Gastos[DATA],\"<=\"&DtFim,Gastos[DATA],\">=\"&DtMeio+1)","v":{"v":0,"d":"0.00 €"}},{"$f":"SUMIFS(Gastos[QUANTIA],Gastos[DATA],\"<=\"&DtFim,Gastos[DATA],\">=\"&DtMeio+1)","v":{"v":0,"d":"0.00 €"}},{"$f":"SUMIFS(Gastos[QUANTIA],Gastos[DATA],\"<=\"&DtFim,Gastos[DATA],\">=\"&DtMeio+1)","v":{"v":0,"d":"0.00 €"}},{"$f":"SUMIFS(Gastos[QUANTIA],Gastos[DATA],\"<=\"&DtFim,Gastos[DATA],\">=\"&DtMeio+1)","v":{"v":0,"d":"0.00 €"}},{"$f":"SUMIFS(Gastos[QUANTIA],Gastos[DATA],\"<=\"&DtFim,Gastos[DATA],\">=\"&DtMeio+1)","v":{"v":0,"d":"0.00 €"}},{"$f":"SUMIFS(Gastos[QUANTIA],Gastos[DATA],\"<=\"&DtFim,Gastos[DATA],\">=\"&DtMeio+1)","v":{"v":300,"d":"300.00 €"}},{"$f":"SUMIFS(Gastos[QUANTIA],Gastos[DATA],\"<=\"&DtFim,Gastos[DATA],\">=\"&DtMeio+1)","v":{"v":875,"d":"875.00 €"}},{"$f":"SUMIFS(Gastos[QUANTIA],Gastos[DATA],\"<=\"&DtFim,Gastos[DATA],\">=\"&DtMeio+1)","v":{"v":0,"d":"0.00 €"}},{"$f":"SUMIFS(Gastos[QUANTIA],Gastos[DATA],\"<=\"&DtFim,Gastos[DATA],\">=\"&DtMeio+1)","v":{"v":0,"d":"0.00 €"}}]

{"sheet":"Gastos e Rendimentos","index":1,"n_rows":40,"n_cols":10,"rows_kept":40}
[]
[null,null,"Orçamento Doméstico Semimensal",{"$nulls":6},"RENDIMENTOS E GASTOS"]
[]
[]
[]
[null,null,"RENDIMENTOS",{"$nulls":3},"GASTOS"]
[]
[null,null,"DATA","DESCRIÇÃO","QUANTIA",null,"DATA","CATEGORIA","DESCRIÇÃO","QUANTIA"]
[null,null,{"$f":"NOW()-14","v":"2012-12-05T10:39:24.530"},"Ordenado do Manuel",{"v":1300,"d":"1,300.00 €"},null,{"$f":"NOW()-7","v":"2012-12-12T10:39:24.530"},"Agregado Familiar","Hipoteca",{"v":1000,"d":"1,000.00 €"}]
[null,null,{"$f":"NOW()-14","v":"2012-12-05T10:39:24.530"},"Ordenado da Susana",{"v":1300,"d":"1,300.00 €"},null,{"$f":"NOW()-7","v":"2012-12-12T10:39:24.530"},"Agregado Familiar","Eletricidade",{"v":100,"d":"100.00 €"}]
[null,null,{"$f":"NOW()-28","v":"2012-11-21T10:39:24.530"},"Ordenado do Manuel",{"v":1500,"d":"1,500.00 €"},null,"2012-12-12T10:39:24.530","Agregado Familiar","Água/Esgoto",{"v":50,"d":"50.00 €"}]
[null,null,"2012-11-21T10:39:24.530","Ordenado da Susana",{"v":1600,"d":"1,600.00 €"},null,"2012-12-12T10:39:24.530","Agregado Familiar","Lixo",{"v":25,"d":"25.00 €"}]
[null,null,{"$f":"NOW()-42","v":"2012-11-07T10:39:24.530"},"Ordenado do Manuel",{"v":1300,"d":"1,300.00 €"},null,"2012-12-12T10:39:24.530","Agregado Familiar","Telemóvel",{"v":100,"d":"100.00 €"}]
[null,null,"2012-11-07T10:39:24.530","Ordenado da Susana",{"v":1300,"d":"1,300.00 €"},null,"2012-12-12T10:39:24.530","Agregado Familiar","Telefone de casa",{"v":30,"d":"30.00 €"}]
[null,null,{"$f":"NOW()-56","v":"2012-10-24T10:39:24.530"},"Ordenado do Manuel",{"v":1500,"d":"1,500.00 €"},null,"2012-12-12T10:39:24.530","Agregado Familiar","Internet",{"v":50,"d":"50.00 €"}]
[null,null,"2012-10-24T10:39:24.530","Ordenado da Susana",{"v":1600,"d":"1,600.00 €"},null,"2012-12-12T10:39:24.530","Agregado Familiar","Televisão",{"v":50,"d":"50.00 €"}]
[null,null,{"$f":"NOW()-70","v":"2012-10-10T10:39:24.530"},"Ordenado do Manuel",{"v":1300,"d":"1,300.00 €"},null,"2012-12-12T10:39:24.530","Agregado Familiar","Manutenção/Reparações",{"v":25,"d":"25.00 €"}]
[{"$nulls":6},{"$f":"NOW()-8","v":"2012-12-11T10:39:24.530"},"Agregado Familiar","Cartão de Crédito 1 ",{"v":100,"d":"100.00 €"}]
[{"$nulls":6},{"$f":"NOW()-9","v":"2012-12-10T10:39:24.530"},"Entretenimento","Filmes",{"v":37,"d":"37.00 €"}]
[{"$nulls":6},{"$f":"NOW()-10","v":"2012-12-09T10:39:24.530"},"Comida","Mercearia",{"v":350,"d":"350.00 €"}]
[{"$nulls":6},{"$f":"NOW()-11","v":"2012-12-08T10:39:24.530"},"Comida","Comer Fora",{"v":75,"d":"75.00 €"}]
[{"$nulls":6},{"$f":"NOW()-12","v":"2012-12-07T10:39:24.530"},"Crianças","Dinheiro para o almoço",{"v":150,"d":"150.00 €"}]
[{"$nulls":6},{"$f":"NOW()-13","v":"2012-12-06T10:39:24.530"},"Contas de Investimento","Poupanças",{"v":250,"d":"250.00 €"}]
[{"$nulls":6},{"$f":"NOW()-14","v":"2012-12-05T10:39:24.530"},"Contas de Investimento","Conta de investimento",{"v":250,"d":"250.00 €"}]
[{"$nulls":6},{"$f":"NOW()-15","v":"2012-12-04T10:39:24.530"},"Pessoal","Ginásio/Health Club",{"v":100,"d":"100.00 €"}]
[{"$nulls":6},{"$f":"NOW()-16","v":"2012-12-03T10:39:24.530"},"Animais Domésticos","Comida",{"v":50,"d":"50.00 €"}]
[{"$nulls":6},{"$f":"NOW()-20","v":"2012-11-29T10:39:24.530"},"Animais Domésticos","Limpeza",{"v":50,"d":"50.00 €"}]
[{"$nulls":6},{"$f":"NOW()-20","v":"2012-11-29T10:39:24.530"},"Animais Domésticos","Outros",{"v":50,"d":"50.00 €"}]
[{"$nulls":6},{"$f":"NOW()-25","v":"2012-11-24T10:39:24.530"},"Transportes","Pagamento do carro 1 ",{"v":300,"d":"300.00 €"}]
[{"$nulls":6},{"$f":"NOW()-25","v":"2012-11-24T10:39:24.530"},"Transportes","Pagamento do carro 2 ",{"v":350,"d":"350.00 €"}]
[{"$nulls":6},{"$f":"NOW()-25","v":"2012-11-24T10:39:24.530"},"Transportes","Seguro do Carro",{"v":50,"d":"50.00 €"}]
[{"$nulls":6},{"$f":"NOW()-30","v":"2012-11-19T10:39:24.530"},"Transportes","Combustível",{"v":50,"d":"50.00 €"}]
[{"$nulls":6},{"$f":"NOW()-31","v":"2012-11-18T10:39:24.530"},"Transportes","Combustível",{"v":25,"d":"25.00 €"}]
[{"$nulls":6},{"$f":"NOW()-42","v":"2012-11-07T10:39:24.530"},"Transportes","Manutenção/Reparações",{"v":150,"d":"150.00 €"}]
[{"$nulls":6},{"$f":"NOW()-45","v":"2012-11-04T10:39:24.530"},"Agregado Familiar","Hipoteca",{"v":5000,"d":"5,000.00 €"}]
[{"$nulls":6},{"$f":"NOW()-50","v":"2012-10-30T10:39:24.530"},"Agregado Familiar","Consumíveis",{"v":200,"d":"200.00 €"}]
[{"$nulls":6},{"$f":"NOW()-65","v":"2012-10-15T10:39:24.530"},"Agregado Familiar","Telefone de casa",{"v":100,"d":"100.00 €"}]
[{"$nulls":6},{"$f":"NOW()-70","v":"2012-10-10T10:39:24.530"},"Agregado Familiar","Lixo",{"v":50,"d":"50.00 €"}]
[{"$nulls":6},{"$f":"NOW()-75","v":"2012-10-05T10:39:24.530"},"Agregado Familiar","Hipoteca",{"v":1000,"d":"1,000.00 €"}]
[{"$nulls":6},{"$f":"NOW()-78","v":"2012-10-02T10:39:24.530"},"Entretenimento","Filmes",{"v":75,"d":"75.00 €"}]

{"sheet":"Relatório Orçamental","index":2,"n_rows":41,"n_cols":8,"rows_kept":41}
[]
[null,null,"Orçamento Doméstico Semimensal",{"$nulls":4},"RELATÓRIO ORÇAMENTAL"]
{"$rows_empty":10}
[null,null,"GASTOS",null,null,"TOTAIS DAS CATEGORIAS"]
[]
[null,null,"DESCRIÇÃO","TOTAIS "]
[null,null,"Água/Esgoto",{"v":50,"d":"50.00 €"}]
[null,null,"Cartão de Crédito 1 ",{"v":100,"d":"100.00 €"}]
[null,null,"Combustível",{"v":75,"d":"75.00 €"}]
[null,null,"Comer Fora",{"v":75,"d":"75.00 €"}]
[null,null,"Comida",{"v":50,"d":"50.00 €"}]
[null,null,"Consumíveis",{"v":200,"d":"200.00 €"}]
[null,null,"Conta de investimento",{"v":250,"d":"250.00 €"}]
[null,null,"Dinheiro para o almoço",{"v":150,"d":"150.00 €"}]
[null,null,"Eletricidade",{"v":100,"d":"100.00 €"}]
[null,null,"Filmes",{"v":112,"d":"112.00 €"}]
[null,null,"Ginásio/Health Club",{"v":100,"d":"100.00 €"}]
[null,null,"Hipoteca",{"v":7000,"d":"7,000.00 €"}]
[null,null,"Internet",{"v":50,"d":"50.00 €"}]
[null,null,"Limpeza",{"v":50,"d":"50.00 €"}]
[null,null,"Lixo",{"v":75,"d":"75.00 €"}]
[null,null,"Manutenção/Reparações",{"v":175,"d":"175.00 €"}]
[null,null,"Mercearia",{"v":350,"d":"350.00 €"}]
[null,null,"Outros",{"v":50,"d":"50.00 €"}]
[null,null,"Pagamento do carro 1 ",{"v":300,"d":"300.00 €"}]
[null,null,"Pagamento do carro 2 ",{"v":350,"d":"350.00 €"}]
[null,null,"Poupanças",{"v":250,"d":"250.00 €"}]
[null,null,"Seguro do Carro",{"v":50,"d":"50.00 €"}]
[null,null,"Telefone de casa",{"v":130,"d":"130.00 €"}]
[null,null,"Telemóvel",{"v":100,"d":"100.00 €"}]
[null,null,"Televisão",{"v":50,"d":"50.00 €"}]
[null,null,"TOTAL",{"v":10242,"d":"10,242.00 €"}]

{"sheet":"Listas de Dados","index":3,"n_rows":20,"n_cols":14,"rows_kept":20}
[]
[null,null,"Orçamento Doméstico Semimensal",{"$nulls":10},"DATA LISTS"]
[]
[]
[null,null,"CONFIGURAÇÃO         Os dados da Categoria abaixo povoam as listas pendentes na tabela dos Gastos na folha Gastos e Rendimentos. Altere os nomes das categorias ou as descrições debaixo de cada categoria para atualizar as listas."]
[]
[null,null,"Agregado Familiar","Entretenimento","Comida","Presentes/Doações","Crianças","Contas de Investimento","Despesas médicas","Outros","Pessoal","Animais Domésticos","Impostos/Questões Jurídicas","Transportes"]
[null,null,"Hipoteca","Filmes","Mercearia","Instituição de caridade 1","Roupa","PPR","Médico/Clínica","Outros","Vestuário","Comida","Retenções federais","Pagamento do carro 1 "]
[null,null,"Eletricidade","Vídeo/Filmes","Comer Fora","Instituição de caridade 2","Brinquedos/Jogos","Poupanças","Seguros","Encargos organizacionais","Cabelo/Unhas","Consumíveis","Retenções estatais","Pagamento do carro 2 "]
[null,null,"Água/Esgoto","Música",null,"Instituição de caridade 3","Dinheiro para o almoço","Transações",null,null,"Limpeza a seco","Despesas médicas","Local","Seguro do Carro"]
[null,null,"Lixo","Concertos/Teatro",null,"Presentes","Encargos/Taxas","Reforma",null,null,"Ginásio/Health Club","Limpeza","Outros","Licenças/Registos"]
[null,null,"Telemóvel","Eventos desportivos",null,null,"Material escolar","Conta de investimento",null,null,"Compras","Outros","Advogado","Combustível"]
[null,null,"Telefone de casa","Outros",null,null,"Outros","Universidade",null,null,"Outros",null,"Abono familiar","Manutenção/Reparações"]
[null,null,"Internet",{"$nulls":3},"Lavandaria","Empréstimos",{"$nulls":4},"Pensão de alimentos","Transportes públicos"]
[null,null,"Televisão",{"$nulls":4},"Empréstimos de Estudantes",{"$nulls":4},"Outros"]
[null,null,"Manutenção/Reparações"]
[null,null,"Consumíveis"]
[null,null,"Cabo/Internet/Telefone"]
[null,null,"Cartão de Crédito 1 "]
[null,null,"Cartão de Crédito 2 "]

{"sheet":"Tabela Dinâmica da Categoria","index":4,"n_rows":16,"n_cols":14,"rows_kept":16,"hidden":true}
[]
[null,null,"Orçamento Doméstico Semimensal",{"$nulls":10},"TABELA DINÂMICA DAS CATEGORIAS"]
[]
[]
[null,"Esta Tabela Dinâmica é a fonte de dados para o Gráfico Dinâmico dos Totais das Categorias no Relatório Orçamental. "]
[]
[null,null,"Etiquetas de Linha","Soma de QUANTIA"]
[null,null,"Agregado Familiar",{"v":7880,"d":"7,880 €"}]
[null,null,"Animais Domésticos",{"v":150,"d":"150 €"}]
[null,null,"Comida",{"v":425,"d":"425 €"}]
[null,null,"Contas de Investimento",{"v":500,"d":"500 €"}]
[null,null,"Crianças",{"v":150,"d":"150 €"}]
[null,null,"Entretenimento",{"v":112,"d":"112 €"}]
[null,null,"Pessoal",{"v":100,"d":"100 €"}]
[null,null,"Transportes",{"v":925,"d":"925 €"}]
[null,null,"Montante Total",{"v":10242,"d":"10,242 €"}]